bitfinex-derivatives/quotes_SOLF0:USTF0_20240912
["timestamp","ask_amount","ask_price","bid_price","bid_amount"]
[1726144717886,3.3463,134.47,134.4,19.2861]
[1726144718084,1.333,134.48,134.4,19.2861]
[1726144718482,3.3467,134.46,134.41,3.3477]
[1726144718886,1.333,134.48,134.4,19.2861]
[1726144718887,1.333,134.48,134.4,1.4261]
[1726144719483,1.333,134.48,134.43,3.3472]
[1726144720089,3.3464,134.47,134.43,3.3472]
[1726144720287,1.333,134.48,134.42,3.3475]
[1726144720690,3.3463,134.47,134.43,3.3472]
[1726144720883,1.333,134.48,134.41,17.86]
[1726144721081,1.333,134.48,134.4,1.4261]
[1726144721699,3.3466,134.46,134.4,1.4261]
[1726144722086,1.333,134.48,134.41,3.3477]
[1726144722499,3.3467,134.46,134.41,3.3477]
[1726144722998,1.333,134.48,134.4,1.4261]
[1726144723194,17.86,134.47,134.4,1.4261]
[1726144723985,3.3475,134.43,134.39,4.6571]
[1726144724191,17.86,134.47,134.39,1.309]
[1726144724586,3.3473,134.43,134.4,3.348]
[1726144725393,17.86,134.47,134.39,4.6572]
[1726144726095,3.3474,134.43,134.39,4.6572]
[1726144726300,3.3474,134.43,134.4,3.348]
[1726144727096,3.3474,134.43,134.39,4.6572]
[1726144728099,17.86,134.47,134.39,1.309]
[1726144728308,17.86,134.45,134.39,1.309]
[1726144728703,3.348,134.4,134.39,1.309]
[1726144729297,3.3479,134.41,134.39,1.309]
[1726144729601,2.7728,134.47,134.35,17.86]
[1726144729805,3.3484,134.39,134.35,19.1971]
[1726144730020,17.86,134.43,134.35,1.3371]
[1726144730213,1.4174,134.42,134.35,4.6862]
[1726144730412,3.3485,134.39,134.35,4.6862]
[1726144730995,1.4174,134.42,134.35,4.6862]
[1726144731500,3.3486,134.38,134.35,4.6862]
[1726144731708,3.3486,134.38,134.35,1.3371]
[1726144731899,1.4174,134.42,134.35,1.3371]
[1726144732093,3.3484,134.39,134.35,1.3371]
[1726144732299,1.4174,134.42,134.36,3.3489]
[1726144733012,1.4174,134.42,134.35,1.3371]
[1726144733013,3.3485,134.38,134.35,4.6863]
[1726144733694,1.4174,134.42,134.35,1.3371]
[1726144734295,3.3484,134.39,134.36,3.349]
[1726144734606,1.4174,134.42,134.35,1.3371]
[1726144735507,1.4174,134.42,134.28,12.74321506]
[1726144735508,17.86,134.37,134.28,12.74321506]
[1726144735805,17.86,134.38,134.29,17.85568501]
[1726144736005,17.86,134.4,134.29,39.44800598]
[1726144736402,3.349,134.36,134.29,39.44800598]
[1726144736707,17.86,134.4,134.29,39.44800598]
[1726144737106,3.3492,134.36,134.29,39.44800598]
[1726144737602,3.3492,134.36,134.31,3.3501]
[1726144738210,3.3494,134.35,134.3,3.3504]
[1726144738907,3.3494,134.35,134.29,39.44800598]
[1726144739403,3.3491,134.36,134.31,3.3502]
[1726144739604,17.86,134.4,134.31,3.3502]
[1726144739804,17.86,134.4,134.29,39.44800598]
[1726144740410,3.3495,134.35,134.3,3.3503]
[1726144740812,17.86,134.4,134.29,39.44800598]
[1726144741014,3.3494,134.35,134.29,39.44800598]
[1726144741213,17.86,134.4,134.29,39.44800598]
[1726144741512,3.3497,134.34,134.29,42.79860598]
[1726144742715,3.3493,134.35,134.3,3.3504]
[1726144743012,17.86,134.4,134.29,39.44800598]
[1726144743208,3.3497,134.34,134.29,42.79850598]
[1726144743415,17.86,134.4,134.29,42.79850598]
[1726144743616,17.86,134.36,134.29,17.85568501]
[1726144743809,17.86,134.34,134.29,16.50898501]
[1726144744407,1.3433,134.35,134.29,16.50898501]
[1726144744914,3.3504,134.31,134.29,16.50898501]
[1726144745215,1.3433,134.35,134.29,16.50898501]
[1726144746212,6.48213854,134.41,134.29,16.50898501]
[1726144746411,2.6732,134.41,134.3,1.331]
[1726144746715,17.86,134.4,134.3,4.6813]
[1726144746914,17.86,134.38,134.3,1.331]
[1726144747115,3.3498,134.33,134.3,1.331]
[1726144747409,17.86,134.35,134.29,16.50898501]
[1726144748011,3.3504,134.31,134.29,16.50898501]
[1726144749017,17.86,134.35,134.29,16.50898501]
[1726144749406,3.3495,134.34,134.29,16.50898501]
[1726144749603,19.2812,134.37,134.29,16.50898501]
[1726144750412,19.2812,134.37,134.3,3.3505]
[1726144750909,3.3497,134.34,134.3,3.3505]
[1726144751310,19.2812,134.37,134.3,3.3505]
[1726144752112,3.3497,134.34,134.3,3.3505]
[1726144752422,19.2812,134.37,134.3,3.3505]
[1726144752624,3.3499,134.33,134.29,19.85958501]
[1726144753227,17.86,134.35,134.29,16.50898501]
[1726144753923,3.3504,134.31,134.29,16.50898501]
[1726144754519,3.3505,134.3,134.29,16.50898501]
[1726144761221,3.3505,134.3,134.29,14.36118501]
[1726144762127,3.3503,134.31,134.29,14.36118501]
[1726144763930,20.5686,134.36,134.29,14.36118501]
[1726144764133,17.86,134.36,134.29,14.36118501]
[1726144764532,3.3503,134.31,134.29,14.36118501]
[1726144764733,17.86,134.36,134.29,14.36118501]
[1726144765431,17.86,134.34,134.29,14.36118501]
[1726144765738,3.3504,134.31,134.29,14.36118501]
[1726144765934,17.86,134.36,134.29,14.36118501]
[1726144766329,3.3499,134.33,134.29,17.71178501]
[1726144766527,17.86,134.36,134.29,14.36118501]
[1726144766933,17.86,134.36,134.3,3.3503]
[1726144766934,3.3495,134.34,134.3,3.3503]
[1726144767438,3.3495,134.34,134.29,15.71568501]
[1726144767732,3.3493,134.35,134.31,3.35]
[1726144769030,17.86,134.34,134.29,15.71568501]
[1726144769433,3.3502,134.32,134.29,15.71568501]
[1726144769834,17.86,134.36,134.29,15.71568501]
[1726144770141,17.86,134.36,134.3,3.3505]
[1726144770541,3.3499,134.33,134.3,3.3505]
[1726144770736,3.3499,134.33,134.29,19.06628501]
[1726144771034,50.5718251,134.41,134.29,19.06628501]
[1726144771035,17.86,134.4,134.29,33.57568501]
[1726144771237,3.3492,134.36,134.3,1.3586]
[1726144771433,17.86,134.4,134.32,3.3499]
[1726144771634,3.3492,134.36,134.32,3.3499]
[1726144772230,3.3493,134.35,134.32,3.3499]
[1726144772537,17.86,134.38,134.31,1.3603]
[1726144772737,1.3369,134.41,134.29,15.71568501]
[1726144772738,17.86,134.35,134.29,15.71568501]
[1726144774030,3.3502,134.32,134.29,15.71568501]
[1726144774230,17.86,134.35,134.29,14.36118501]
[1726144774432,3.3505,134.31,134.29,14.36118501]
[1726144774634,17.86,134.33,134.29,14.36118501]
[1726144775344,3.3505,134.3,134.29,14.36118501]
[1726144778742,17.86,134.33,134.29,14.36118501]
[1726144779241,3.3505,134.3,134.29,14.36118501]
[1726144779447,17.86,134.33,134.29,14.36118501]
[1726144779637,17.86,134.35,134.29,14.36118501]
[1726144780049,17.86,134.33,134.29,14.36118501]
[1726144781246,3.3505,134.3,134.29,14.36118501]
[1726144782147,3.3503,134.31,134.29,14.36118501]
[1726144782337,17.86,134.33,134.29,14.36118501]
[1726144783044,3.3505,134.3,134.29,14.36118501]
[1726144787157,453.3505,134.3,134.29,14.36118501]
[1726144791458,450.0,134.3,134.29,14.36118501]
[1726144791955,453.3505,134.3,134.29,14.36118501]
[1726144792346,445.7018,134.3,134.29,14.36118501]
[1726144792542,437.1052,134.3,134.29,17.71188501]
[1726144793572,432.8109,134.3,134.29,17.71188501]
[1726144800648,432.8109,134.3,134.29,14.36118501]
[1726144801150,436.1614,134.3,134.29,14.36118501]
[1726144803759,432.8109,134.3,134.29,14.36118501]
[1726144803953,432.8109,134.3,134.29,17.71188501]
[1726144804151,432.8109,134.3,134.29,14.36118501]
[1726144806949,432.8109,134.3,134.29,17.71188501]
[1726144807153,432.8109,134.3,134.29,14.36118501]
[1726144808055,432.8109,134.3,134.29,17.71188501]
[1726144809868,432.8109,134.3,134.29,14.36118501]
[1726144810366,436.1614,134.3,134.29,14.36118501]
[1726144812570,432.8109,134.3,134.29,14.36118501]
[1726144815869,436.1614,134.3,134.29,14.36118501]
[1726144816073,432.8109,134.3,134.29,14.36118501]
[1726144818175,436.1614,134.3,134.29,14.36118501]
[1726144819466,432.8109,134.3,134.29,25.81118501]
[1726144819668,432.8109,134.3,134.29,30.83502924]
[1726144819864,432.8109,134.3,134.29,34.18572924]
[1726144820368,432.8109,134.3,134.29,29.16188501]
[1726144820565,432.8109,134.3,134.29,34.1857826]
[1726144821068,432.8109,134.3,134.29,29.16188501]
[1726144821267,432.8109,134.3,134.29,34.18569484]
[1726144821959,342.7009,134.3,134.29,34.18569484]
[1726144822162,321.5052,134.3,134.29,35.12147081]
[1726144822369,315.1916,134.3,134.29,35.12147081]
[1726144822767,315.1916,134.3,134.29,40.14499715]
[1726144823164,315.1916,134.3,134.29,35.39649715]
[1726144823468,315.1916,134.3,134.29,46.84649715]
[1726144823871,312.98421188,134.3,134.29,41.82297081]
[1726144824059,309.50511188,134.3,134.29,57.01696508]
[1726144824258,260.52451188,134.3,134.29,57.01696508]
[1726144824458,256.61571188,134.3,134.29,57.01696508]
[1726144824971,136.76021188,134.3,134.29,53.25514189]
[1726144825275,136.76021188,134.3,134.29,57.03631047]
[1726144825484,133.06021188,134.3,134.29,41.53147081]
[1726144825769,133.06021188,134.3,134.29,46.55321367]
[1726144826168,133.06021188,134.3,134.29,45.32008264]
[1726144826369,129.33021188,134.3,134.29,46.55331707]
[1726144826688,124.73021188,134.3,134.29,46.55331707]
[1726144826977,122.73021188,134.3,134.29,46.55331707]
[1726144827160,81.37021188,134.3,134.29,50.29689727]
[1726144827772,3.348,134.4,134.36,3.349]
[1726144827971,3.3478,134.41,134.37,3.65909936]
[1726144828173,1.3799,134.42,134.37,3.65909936]
[1726144828376,1.3799,134.42,134.35,17.86]
[1726144828962,3.348,134.41,134.36,3.3489]
[1726144829167,1.3799,134.42,134.36,7.01777987]
[1726144829564,1.3799,134.42,134.37,17.86]
[1726144830277,1.3799,134.42,134.38,3.3483]
[1726144830481,1.3799,134.42,134.37,21.53185665]
[1726144830975,1.3799,134.42,134.39,3.3482]
[1726144831174,1.3799,134.42,134.37,21.53185665]
[1726144831371,4.7274,134.42,134.38,3.3484]
[1726144831771,1.3799,134.42,134.37,21.53185665]
[1726144832477,1.3799,134.42,134.39,3.3481]
[1726144833276,1.3799,134.42,134.39,21.2081]
[1726144833479,1.3616,134.44,134.4,3.348]
[1726144833667,3.3468,134.45,134.39,17.86]
[1726144833867,2.7194,134.46,134.41,17.86]
[1726144834169,1.3077,134.51,134.43,17.86]
[1726144834371,2.7194,134.5,134.45,17.86]
[1726144834577,2.7194,134.5,134.47,17.86]
[1726144834881,2.7194,134.5,134.42,10.97029347]
[1726144835082,2.7194,134.5,134.42,5.01801857]
[1726144835265,2.7194,134.5,134.42,17.86]
[1726144835464,2.7194,134.5,134.44,17.86]
[1726144836079,2.7194,134.5,134.42,5.95169533]
[1726144836379,2.7194,134.5,134.46,17.86]
[1726144836587,2.7194,134.5,134.47,3.3461]
[1726144836881,1.3824,134.5,134.46,21.5166498]
[1726144837283,1.3824,134.5,134.46,24.8631498]
[1726144838384,1.3824,134.5,134.47,3.3462]
[1726144838880,1.3824,134.5,134.48,3.3459]
[1726144839293,1.3656,134.54,134.46,21.5166498]
[1726144839879,3.345,134.53,134.46,21.5166498]
[1726144840182,1.3656,134.54,134.46,21.5166498]
[1726144840486,3.345,134.53,134.46,21.5166498]
[1726144840790,3.345,134.53,134.48,3.3458]
[1726144841685,19.2256,134.54,134.33,7.451]
[1726144841886,19.2256,134.54,134.42,17.86]
[1726144842073,19.2256,134.54,134.43,7.1422777]
[1726144842471,17.86,134.5,134.4,17.86]
[1726144842682,2.7132,134.49,134.4,21.64503977]
[1726144843082,1.3977,134.48,134.4,21.64503977]
[1726144843280,3.3468,134.45,134.41,3.3477]
[1726144843784,3.3466,134.46,134.41,3.3477]
[1726144843979,3.3466,134.46,134.42,3.3475]
[1726144844292,1.3977,134.48,134.4,21.64503977]
[1726144844488,1.3977,134.48,134.38,17.86]
[1726144845191,3.3471,134.44,134.39,3.3481]
[1726144845381,3.3471,134.44,134.38,17.86]
[1726144845883,3.3468,134.45,134.4,3.3478]
[1726144846075,3.3468,134.45,134.4,6.9911301]
[1726144846276,1.3977,134.48,134.38,17.86]
[1726144846277,3.3466,134.46,134.41,3.3476]
[1726144846471,1.3977,134.48,134.4,3.80514842]
[1726144846691,1.3977,134.48,134.38,17.86]
[1726144847386,1.3977,134.48,134.41,3.3477]
[1726144847889,1.3977,134.48,134.4,3.348]
[1726144847890,3.3468,134.45,134.4,3.348]
[1726144848588,3.3468,134.45,134.41,3.3477]
[1726144848791,3.347,134.44,134.39,3.66378989]
[1726144848995,1.3977,134.48,134.43,3.347]
[1726144849203,1.3977,134.48,134.4,17.86]
[1726144849487,3.3466,134.46,134.4,17.86]
[1726144849686,1.3977,134.48,134.41,3.3476]
[1726144850085,3.3469,134.45,134.4,21.2078]
[1726144850285,1.3977,134.48,134.4,3.3478]
[1726144850486,3.347,134.45,134.4,3.3478]
[1726144850794,1.3977,134.48,134.42,17.86]
[1726144850996,1.3977,134.48,134.4,17.86]
[1726144851193,1.3977,134.48,134.4,21.50966103]
[1726144851800,3.3466,134.46,134.41,3.3477]
[1726144852583,3.3468,134.45,134.41,3.3477]
[1726144852787,1.3977,134.48,134.41,3.3477]
[1726144853991,3.3466,134.46,134.41,3.3477]
[1726144854202,1.3977,134.48,134.42,3.3474]
[1726144854504,4.7438,134.48,134.42,17.86]
[1726144854696,1.3977,134.48,134.42,17.86]
[1726144855289,1.3977,134.48,134.42,21.2073]
[1726144855595,1.3977,134.48,134.4,21.50966103]
[1726144855787,19.2577,134.48,134.39,3.3482]
[1726144855986,19.2577,134.48,134.38,17.86]
[1726144856404,3.3477,134.42,134.38,17.86]
[1726144856598,17.86,134.46,134.36,17.86]
[1726144856801,1.3327,134.41,134.35,3.3492]
[1726144857597,3.3481,134.4,134.36,3.349]
[1726144858590,4.6805,134.41,134.36,3.349]
[1726144858791,4.6805,134.41,134.37,3.3487]
[1726144858995,1.3327,134.41,134.36,17.86]
[1726144859688,1.3327,134.41,134.37,7.0679083]
[1726144860095,1.3327,134.41,134.37,3.7192083]
[1726144860305,4.6805,134.41,134.36,17.86]
[1726144860501,1.3327,134.41,134.34,17.86]
[1726144860705,1.3327,134.41,134.36,3.3488]
[1726144861002,4.6805,134.41,134.37,3.74897387]
[1726144861206,4.6805,134.41,134.34,17.86]
[1726144861506,1.3327,134.41,134.36,17.86]
[1726144861703,1.0,134.47,134.38,17.86]
[1726144862010,1.0,134.47,134.41,17.86]
[1726144862011,6.0545,134.46,134.41,17.86]
[1726144862305,2.7079,134.46,134.41,17.86]
[1726144863305,2.7079,134.46,134.29,21.53837774]
[1726144863605,2.7079,134.46,134.35,17.86]
[1726144863798,2.7079,134.46,134.37,17.86]
[1726144864104,2.7079,134.46,134.38,3.66254837]
[1726144864296,2.7079,134.46,134.29,18.10476521]
[1726144864297,3.3473,134.43,134.29,18.10476521]
[1726144864494,2.7079,134.46,134.37,17.86]
[1726144864699,2.7079,134.46,134.37,21.6090698]
[1726144864893,3.3474,134.43,134.38,3.3483]
[1726144865295,2.7079,134.46,134.38,3.3483]
[1726144865494,3.3474,134.43,134.38,3.3483]
[1726144865698,2.7079,134.46,134.37,21.2087]
[1726144865899,17.86,134.45,134.35,17.86]
[1726144866200,17.86,134.45,134.33,17.86]
[1726144866407,17.86,134.45,134.34,3.3493]
[1726144866606,3.3485,134.38,134.34,3.3493]
[1726144867500,3.3483,134.39,134.35,3.3492]
[1726144868303,3.3485,134.38,134.34,3.3494]
[1726144868512,2.7617,134.41,134.31,17.86]
[1726144868712,2.7617,134.41,134.34,3.3494]
[1726144869007,2.7617,134.41,134.33,17.86]
[1726144869210,2.7617,134.41,134.35,3.349]
[1726144869511,3.3483,134.39,134.35,3.349]
[1726144872215,3.3483,134.39,134.36,3.349]
[1726144872407,3.3483,134.39,134.33,17.86]
[1726144873218,3.3483,134.39,134.29,18.10476521]
[1726144873399,3.3483,134.39,134.34,17.86]
[1726144873599,3.3481,134.4,134.36,3.349]
[1726144874009,2.7617,134.41,134.36,3.349]
[1726144874607,6.1097,134.41,134.37,3.3486]
[1726144875019,1.4023,134.42,134.36,21.57557302]
[1726144875221,1.4023,134.42,134.38,3.3483]
[1726144875222,3.3476,134.42,134.38,3.3483]
[1726144875408,17.86,134.47,134.36,21.57557302]
[1726144875409,1.4224,134.46,134.36,21.57557302]
[1726144875612,1.4224,134.46,134.38,17.86]
[1726144876408,3.3474,134.43,134.39,3.3482]
[1726144876907,1.4224,134.46,134.38,17.86]
[1726144877107,3.3476,134.42,134.38,21.2083]
[1726144877515,3.3476,134.42,134.38,21.2085]
[1726144877711,1.4224,134.46,134.38,17.86]
[1726144878106,3.3476,134.42,134.38,21.2085]
[1726144878310,1.4224,134.46,134.36,21.57557302]
[1726144878712,3.3475,134.42,134.38,3.3483]
[1726144878916,1.4224,134.46,134.36,21.57557302]
[1726144879512,1.4224,134.46,134.36,17.86]
[1726144879822,17.86,134.45,134.33,17.86]
[1726144881006,3.3482,134.4,134.33,17.86]
[1726144881207,17.86,134.45,134.33,17.86]
[1726144881413,17.86,134.45,134.35,17.86]
[1726144881621,17.86,134.45,134.36,3.63724322]
[1726144882119,3.3484,134.39,134.36,3.349]
[1726144882913,17.86,134.45,134.35,21.2091]
[1726144883117,17.86,134.41,134.33,17.86]
[1726144883419,4.1023,134.4,134.33,17.86]
[1726144884015,4.1023,134.4,134.34,3.3495]
[1726144884221,3.3486,134.38,134.34,3.3495]
[1726144884425,3.3486,134.38,134.33,17.86]
[1726144884720,3.3484,134.39,134.35,3.3492]
[1726144884929,4.1023,134.4,134.35,3.3492]
[1726144885123,4.1023,134.4,134.34,3.3494]
[1726144885333,3.3483,134.39,134.32,17.86]
[1726144885820,3.3485,134.38,134.32,17.86]
[1726144886221,3.3485,134.38,134.34,3.3492]
[1726144886420,3.3485,134.38,134.32,17.86]
[1726144886625,4.1023,134.4,134.32,17.86]
[1726144886926,4.1023,134.4,134.35,3.3492]
[1726144887227,3.3486,134.38,134.32,17.86]
[1726144887437,3.3486,134.38,134.34,3.3494]
[1726144887926,3.3488,134.37,134.33,3.3496]
[1726144888118,3.3488,134.37,134.32,17.86]
[1726144888319,3.3486,134.38,134.32,17.86]
[1726144888618,2.7849,134.4,134.32,17.86]
[1726144888831,2.7849,134.4,134.32,22.88161302]
[1726144889031,2.7849,134.4,134.32,17.86]
[1726144889229,2.7849,134.4,134.34,3.3494]
[1726144889531,2.7849,134.4,134.32,17.86]
[1726144889720,3.3488,134.37,134.32,17.86]
[1726144890013,2.7849,134.4,134.32,17.86]
[1726144890434,3.3484,134.39,134.35,3.3491]
[1726144890835,2.7849,134.4,134.32,17.86]
[1726144891531,3.349,134.36,134.32,17.86]
[1726144892123,3.349,134.36,134.32,21.2099]
[1726144892522,3.349,134.36,134.32,17.86]
[1726144893925,3.349,134.36,134.33,3.3497]
[1726144894335,3.3488,134.37,134.33,3.3497]
[1726144894921,3.3486,134.38,134.35,3.3492]
[1726144895126,2.7849,134.4,134.34,17.86]
[1726144895630,3.3487,134.38,134.34,21.2094]
[1726144895824,2.7849,134.4,134.34,17.86]
[1726144896136,2.7849,134.4,134.34,21.2095]
[1726144896736,3.3486,134.38,134.34,21.2095]
[1726144896922,2.7849,134.4,134.34,17.86]
[1726144897328,3.3484,134.39,134.34,17.86]
[1726144897723,3.3484,134.39,134.35,3.3491]
[1726144897929,6.133,134.4,134.34,17.86]
[1726144898228,12.7555,134.43,134.37,11.43]
[1726144898434,12.7555,134.43,134.37,18.58415622]
[1726144898646,3.3479,134.41,134.37,18.58415622]
[1726144898839,3.3479,134.41,134.37,15.23545622]
[1726144899337,1.3255,134.43,134.37,15.23545622]
[1726144899338,3.348,134.4,134.37,15.23545622]
[1726144900038,3.348,134.4,134.37,18.58405622]
[1726144900340,3.348,134.4,134.37,7.15405622]
[1726144900542,3.3479,134.41,134.37,7.15405622]
[1726144900932,3.3479,134.41,134.38,3.3485]
[1726144901944,1.3255,134.43,134.38,3.3485]
[1726144902829,3.3478,134.41,134.38,3.3485]
[1726144903033,1.3255,134.43,134.39,3.3482]
[1726144903236,3.3477,134.42,134.39,3.3482]
[1726144904440,1.3255,134.43,134.38,3.3484]
[1726144905337,1.3255,134.43,134.35,17.86]
[1726144905936,3.348,134.4,134.37,3.3486]
[1726144906143,1.3255,134.43,134.37,3.3486]
[1726144906531,1.3255,134.43,134.36,3.3488]
[1726144906733,1.3255,134.43,134.33,17.86]
[1726144906936,1.3255,134.43,134.34,5.02129275]
[1726144907246,3.3486,134.38,134.35,3.3491]
[1726144907431,1.3255,134.43,134.33,17.86]
[1726144907638,1.3255,134.43,134.34,8.37059352]
[1726144907851,1.3255,134.43,134.34,5.02129352]
[1726144908040,1.3255,134.43,134.33,17.86]
[1726144909236,1.3255,134.43,134.34,5.02157748]
[1726144909438,1.3255,134.43,134.34,5.95660238]
[1726144909634,1.3255,134.43,134.33,17.86]
[1726144909847,1.3255,134.43,134.34,5.02140027]
[1726144910143,3.3483,134.39,134.36,3.3488]
[1726144910337,3.3483,134.39,134.36,6.98211844]
[1726144910649,3.3481,134.4,134.37,3.3487]
[1726144910841,19.1855,134.43,134.36,3.63331844]
[1726144911042,3.3487,134.38,134.35,8.37042061]
[1726144911339,3.3487,134.38,134.34,5.95607242]
[1726144911544,3.3487,134.38,134.33,17.86]
[1726144911749,3.3487,134.38,134.34,14.32663155]
[1726144911940,3.3487,134.38,134.34,3.3493]
[1726144913250,3.3487,134.38,134.35,5.02133701]
[1726144913453,3.3487,134.38,134.34,3.3493]
[1726144913865,3.3487,134.38,134.35,5.021318]
[1726144914063,3.3487,134.38,134.34,3.3493]
[1726144914270,3.3487,134.38,134.35,5.02129226]
[1726144914566,3.3487,134.38,134.33,17.86]
[1726144914761,3.3487,134.38,134.34,10.97740795]
[1726144914962,3.3483,134.39,134.35,5.02130195]
[1726144915267,19.1855,134.43,134.34,5.95613626]
[1726144915470,3.3485,134.39,134.35,8.37042539]
[1726144915664,19.1855,134.43,134.35,3.3491]
[1726144916666,3.3484,134.39,134.35,3.3491]
[1726144918973,19.1855,134.43,134.35,3.3491]
[1726144919869,3.3484,134.39,134.35,3.3491]
[1726144920373,19.1855,134.43,134.36,7.04251879]
[1726144920957,3.348,134.41,134.36,3.69351879]
[1726144921155,2.6951,134.46,134.37,5.95525063]
[1726144921359,2.6951,134.46,134.38,5.95525063]
[1726144921668,2.6951,134.46,134.36,21.60599624]
[1726144921868,17.86,134.45,134.37,10.97571189]
[1726144922175,11.44,134.41,134.35,11.44]
[1726144922368,11.44,134.41,134.36,10.97724551]
[1726144922568,3.3483,134.39,134.36,3.3489]
[1726144923359,3.3485,134.38,134.35,14.7892]
[1726144923862,3.3485,134.38,134.36,5.02160978]
[1726144924062,3.3485,134.38,134.35,14.7892]
[1726144924262,3.3485,134.38,134.36,10.97772395]
[1726144924462,3.3485,134.38,134.36,3.6282192]
[1726144924870,3.3485,134.38,134.35,14.7892]
[1726144925071,3.3485,134.38,134.36,10.97775514]
[1726144925377,3.3485,134.38,134.35,14.7892]
[1726144925579,3.3485,134.38,134.36,5.0215187]
[1726144925871,3.3485,134.38,134.35,11.44]
[1726144927268,1.0,134.45,134.33,11.44]
[1726144927269,11.44,134.39,134.33,11.44]
[1726144927470,11.44,134.39,134.34,5.95689966]
[1726144927666,3.3489,134.37,134.35,5.02190684]
[1726144927974,3.3489,134.37,134.33,14.7896]
[1726144928167,11.44,134.39,134.34,10.97864753]
[1726144928363,1.3441,134.44,134.38,11.44]
[1726144928567,1.3441,134.44,134.38,15.20581807]
[1726144928774,3.3478,134.41,134.38,18.55421807]
[1726144928983,1.3441,134.44,134.38,15.20581807]
[1726144929475,3.3477,134.42,134.39,5.02060873]
[1726144930067,3.3477,134.42,134.39,3.3481]
[1726144930268,3.3473,134.43,134.39,11.44]
[1726144930470,3.3473,134.43,134.41,11.44]
[1726144930666,2.645,134.45,134.41,11.44]
[1726144930866,3.3471,134.44,134.41,11.44]
[1726144931077,2.645,134.45,134.41,11.44]
[1726144931266,2.645,134.45,134.41,14.7876]
[1726144931467,5.9919,134.45,134.41,14.7876]
[1726144932267,5.9919,134.45,134.41,3.3476]
[1726144932474,3.347,134.44,134.41,3.3476]
[1726144932669,3.347,134.44,134.4,3.3479]
[1726144932870,2.645,134.45,134.4,3.3479]
[1726144933074,2.645,134.45,134.38,24.96421807]
[1726144933279,2.645,134.45,134.39,10.97496681]
[1726144933484,3.3477,134.42,134.38,17.85]
[1726144933681,2.645,134.45,134.38,21.1985]
[1726144933879,2.645,134.45,134.39,10.9754156]
[1726144934075,2.645,134.45,134.37,3.7298162]
[1726144934275,19.2345,134.44,134.38,10.97540688]
[1726144934481,19.2345,134.44,134.33,17.85]
[1726144934778,19.2345,134.44,134.34,10.97676048]
[1726144934979,19.2345,134.44,134.35,10.97676048]
[1726144935175,3.3484,134.39,134.36,10.97676048]
[1726144935373,3.3484,134.39,134.37,10.97676048]
[1726144935569,3.3484,134.39,134.35,3.3491]
[1726144935774,3.3484,134.39,134.36,10.97694221]
[1726144935965,19.2345,134.44,134.37,10.97694221]
[1726144936172,3.3481,134.4,134.36,3.65677288]
[1726144936369,3.3481,134.4,134.38,5.02095731]
[1726144936577,19.2345,134.44,134.38,5.02095731]
[1726144936879,1.3845,134.44,134.36,3.78851496]
[1726144937070,1.3845,134.44,134.37,17.85]
[1726144937275,3.3474,134.43,134.39,3.3481]
[1726144937673,3.3474,134.43,134.4,5.02043434]
[1726144937979,3.3475,134.42,134.39,3.3481]
[1726144938179,3.3475,134.42,134.4,5.02041299]
[1726144938476,3.3477,134.41,134.38,3.3484]
[1726144938682,3.3477,134.41,134.39,5.02049938]
[1726144938873,3.3477,134.41,134.37,21.1986]
[1726144939180,3.3477,134.41,134.38,10.97592636]
[1726144939385,3.3477,134.41,134.39,5.02068796]